bitfinex-derivatives/quotes_BNBF0:USTF0_20250424
["timestamp","ask_amount","ask_price","bid_price","bid_amount"]
[1745505505083,0.27279296,599.62,597.7,0.29071103]
[1745505505084,0.27279296,599.61,597.71,0.30700195]
[1745505505281,0.27279296,599.6,597.72,0.60481619]
[1745505505483,0.27279296,599.59,597.73,0.91181814]
[1745505505683,0.27279296,599.58,597.74,0.91181814]
[1745505505884,0.27279296,599.57,597.75,0.91181814]
[1745505506190,0.27279296,599.56,597.76,0.91181814]
[1745505506392,0.27279296,599.57,597.77,0.91181814]
[1745505506591,0.27279296,599.56,597.78,0.91132972]
[1745505506792,0.27279296,599.57,597.79,0.91132972]
[1745505506992,0.27279296,599.56,597.8,0.91132972]
[1745505507192,0.27279296,599.56,597.81,0.60432777]
[1745505507386,0.27279296,599.55,597.82,0.91132972]
[1745505507587,0.27279296,599.57,597.83,0.91132972]
[1745505507791,0.27279296,599.56,597.84,0.91132972]
[1745505507992,0.27279296,599.57,597.85,0.91132972]
[1745505508292,1.27518348,599.58,597.83,0.953]
[1745505508293,0.27279296,599.56,597.86,0.91132972]
[1745505508493,0.27279296,599.55,597.87,0.91132972]
[1745505508693,0.27279296,599.57,597.88,0.91132972]
[1745505508892,0.27279296,599.54,597.89,0.91132972]
[1745505509187,0.27279296,599.54,597.83,0.953]
[1745505509188,0.27279296,599.53,597.9,0.91132972]
[1745505509393,0.27279296,599.57,597.91,0.91132972]
[1745505509593,0.27279296,599.57,597.92,0.91132972]
[1745505509790,0.27279296,599.65,597.93,0.91132972]
[1745505509990,0.27279296,599.65,597.94,0.91132972]
[1745505510191,0.27279296,599.65,597.95,0.90991166]
[1745505510388,0.27279296,599.65,597.96,0.90991166]
[1745505510588,0.29071103,599.66,597.97,0.60290971]
[1745505510792,0.27263314,599.64,597.98,0.60290971]
[1745505510988,0.27263314,599.63,597.99,0.909749]
[1745505511295,0.27263314,599.62,598.0,0.909749]
[1745505511593,0.27263314,599.61,598.01,0.909749]
[1745505511793,0.27263314,599.65,598.02,0.30683929]
[1745505511986,0.27263314,599.6,598.02,0.30683929]
[1745505512188,0.29071103,599.66,597.83,0.953]
[1745505512393,0.27263218,599.65,597.84,0.90928723]
[1745505512591,0.27263218,599.65,597.85,0.60244898]
[1745505512788,0.27263218,599.64,597.86,0.90928723]
[1745505512991,0.27263218,600.25,597.87,0.90928723]
[1745505513193,0.27263218,600.24,597.88,0.90928723]
[1745505513391,0.27263218,600.23,597.89,0.90928723]
[1745505513592,0.27263218,600.22,597.9,0.90928723]
[1745505513796,1.27518348,600.26,597.91,0.60244898]
[1745505514095,0.27262335,600.25,597.92,0.90927836]
[1745505514298,0.27262335,600.24,597.93,0.30682938]
[1745505514491,0.27262335,600.24,597.84,0.30682938]
[1745505514796,0.27262335,600.23,597.84,0.30682938]
[1745505514990,0.27262335,600.22,597.85,0.60199897]
[1745505515192,0.27262335,600.21,597.86,0.90882835]
[1745505515393,1.27518348,600.26,597.87,0.60199897]
[1745505515597,0.27261956,600.25,597.88,0.90882439]
[1745505515794,0.27261956,600.24,597.89,0.90882439]
[1745505515989,0.27261956,600.24,597.9,0.60199897]
[1745505516201,0.27261956,600.23,597.91,0.90882439]
[1745505516496,0.27261956,600.23,597.83,0.953]
[1745505516497,1.27518348,600.18,597.92,0.90882439]
[1745505516697,0.27261956,600.17,597.93,0.90882439]
[1745505516996,0.27261742,600.16,597.94,0.90882224]
[1745505517196,0.27261742,600.15,597.95,0.90882224]
[1745505517398,1.27518348,600.18,597.96,0.90844236]
[1745505517399,0.27261742,600.14,597.96,0.90844236]
[1745505517597,0.27261742,600.13,597.97,0.90844236]
[1745505517797,0.27261742,600.12,597.98,0.90844236]
[1745505518003,0.27261742,600.11,597.99,0.90844236]
[1745505518190,0.27261742,600.1,598.0,0.30682327]
[1745505518392,0.27261742,600.09,597.99,0.30682327]
[1745505518597,0.27261742,600.08,597.98,1.011]
[1745505518804,0.27261742,600.07,597.98,1.011]
[1745505518994,0.27261742,600.06,597.98,1.011]
[1745505519192,0.27261742,600.05,597.99,0.30685786]
[1745505519392,0.27261742,600.04,597.99,0.30685786]
[1745505519596,0.27261742,600.03,597.99,0.30685786]
[1745505519798,0.27261742,600.02,597.98,1.011]
[1745505519998,1.27518348,600.22,597.98,1.011]
[1745505520198,0.27265505,600.21,597.99,0.30686161]
[1745505520400,0.27265505,600.2,597.99,0.30686161]
[1745505520600,0.27265505,600.19,597.99,0.30686161]
[1745505520794,0.27265505,600.18,597.99,0.30686161]
[1745505520997,0.27265505,600.17,597.99,0.30686161]
[1745505521195,0.27265505,600.16,597.99,0.30686161]
[1745505521399,0.27265505,600.15,597.99,0.30686161]
[1745505521602,0.27265505,600.15,597.98,1.011]
[1745505521603,0.27265623,600.14,597.98,1.011]
[1745505521810,0.27265623,600.13,597.99,0.30686237]
[1745505521997,0.27265623,600.12,597.98,1.011]
[1745505522196,0.27265623,600.11,598.0,0.92]
[1745505522400,0.27265623,600.1,598.0,0.92]
[1745505522603,0.27265623,600.09,598.0,0.92]
[1745505522897,0.27265623,600.08,598.0,0.92]
[1745505523102,0.27265623,600.07,598.0,0.92]
[1745505523300,0.27265623,600.06,598.0,0.92]
[1745505523501,0.27265623,600.05,598.0,0.92]
[1745505523702,0.27265623,600.04,598.0,0.92]
[1745505523901,0.27265623,600.03,598.01,0.892]
[1745505524201,0.27265623,600.02,598.01,0.892]
[1745505524400,0.27265623,600.01,598.01,0.892]
[1745505524596,0.27271788,600.0,598.01,0.892]
[1745505524802,0.27271788,599.99,598.01,0.892]
[1745505525007,0.27271788,599.98,598.01,0.892]
[1745505525303,0.27271788,599.97,598.01,0.892]
[1745505525500,0.27271788,599.96,598.01,0.892]
[1745505525700,0.27271788,599.95,598.01,0.892]
[1745505525897,0.27271788,599.94,598.01,0.892]
[1745505526301,0.27271788,599.93,598.01,0.892]
[1745505526501,0.27271788,599.92,598.01,0.892]
[1745505526706,0.27271788,599.91,598.01,0.892]
[1745505526906,0.27271788,599.9,598.01,0.892]
[1745505527200,0.27271788,599.89,598.01,0.892]
[1745505527405,0.27271788,599.88,598.01,0.892]
[1745505527601,0.27271788,599.87,598.01,0.892]
[1745505527800,0.27271788,599.86,598.01,0.892]
[1745505528000,0.27271788,599.85,598.01,0.892]
[1745505528205,0.27271788,599.84,598.01,0.892]
[1745505528403,0.27271788,599.83,598.01,0.892]
[1745505530904,0.27271788,599.82,598.01,0.892]
[1745505531110,0.27278144,599.81,598.01,0.892]
[1745505531410,0.27278144,599.8,598.01,0.892]
[1745505531606,0.27278144,599.79,598.01,0.892]
[1745505531806,1.27518348,599.74,598.01,0.892]
[1745505532013,0.27278144,599.73,598.01,0.892]
[1745505532210,0.27278144,599.72,598.01,0.892]
[1745505532406,1.27518348,599.74,598.01,0.892]
[1745505532407,0.27278144,599.71,598.01,0.892]
[1745505532610,0.27278144,599.7,598.01,0.892]
[1745505532810,1.27518348,599.74,598.01,0.892]
[1745505533009,0.27278268,599.73,598.01,0.892]
[1745505533311,0.27278268,599.72,598.01,0.892]
[1745505533605,0.27278268,599.71,598.01,0.892]
[1745505533809,0.27278268,599.7,598.01,0.892]
[1745505534012,0.27278268,599.69,598.01,0.892]
[1745505534209,0.27278268,599.68,598.01,0.892]
[1745505534408,1.27518348,599.64,598.01,0.892]
[1745505534607,0.27278268,599.63,598.01,0.892]
[1745505534805,0.27278268,599.62,598.01,0.892]
[1745505535013,0.27278268,599.61,598.01,0.892]
[1745505535412,0.27278268,599.6,598.01,0.892]
[1745505535608,0.27278268,599.59,598.01,0.892]
[1745505535810,0.27278268,599.58,597.98,1.011]
[1745505536010,1.27518348,599.64,597.89,0.29063698]
[1745505536316,0.27277542,599.63,597.89,0.29063698]
[1745505536514,0.27277542,599.62,597.89,0.29063698]
[1745505536718,0.27277542,599.61,597.89,0.29063698]
[1745505537021,0.27277542,599.6,597.3,1.05938387]
[1745505537219,0.27277542,599.59,597.89,0.29074139]
[1745505537413,1.27518348,599.72,597.3,1.05938387]
[1745505537615,0.27277545,599.71,597.56,0.91137656]
[1745505537822,0.27277545,599.7,597.89,0.29073046]
[1745505538019,0.27277545,599.69,597.3,1.05938387]
[1745505538217,0.27277545,599.68,597.89,0.29072925]
[1745505538416,0.27277545,599.67,597.89,0.29072925]
[1745505538624,0.27277545,599.66,597.9,0.826]
[1745505538821,0.27277545,599.65,597.9,0.826]
[1745505539021,2.16958302,600.35,597.9,0.826]
[1745505539022,0.27277545,599.64,597.9,0.826]
[1745505539224,0.27277545,599.63,597.9,1.498]
[1745505539521,0.27277545,599.62,597.9,1.498]
[1745505539725,0.27277545,599.61,597.9,2.368]
[1745505539923,0.27277545,599.6,597.9,3.261]
[1745505540121,0.27277545,599.59,597.9,3.261]
[1745505540328,0.27277545,599.58,597.9,3.261]
[1745505540523,0.27277545,599.57,597.9,3.261]
[1745505540823,0.27277545,599.56,597.9,3.261]
[1745505541224,0.27277545,599.55,597.9,3.261]
[1745505541425,0.27277545,599.54,597.9,3.261]
[1745505541623,1.27518348,599.69,597.9,3.261]
[1745505541817,0.27278166,599.68,597.9,3.261]
[1745505542019,0.27278166,599.67,597.9,3.261]
[1745505542225,0.27278166,599.66,597.9,3.261]
[1745505542421,0.27278166,599.65,597.9,3.261]
[1745505542621,0.27278166,599.64,597.9,3.261]
[1745505542823,0.27278166,599.63,597.9,3.261]
[1745505543026,0.27278166,599.62,597.9,3.261]
[1745505543220,0.27278166,599.61,597.9,3.261]
[1745505543418,0.27278166,599.6,597.9,3.261]
[1745505543619,0.27278166,599.59,597.9,3.261]
[1745505543827,0.27278166,599.58,597.9,3.261]
[1745505544023,0.27278166,599.57,597.9,3.261]
[1745505544226,0.27278166,599.56,597.9,3.261]
[1745505544425,0.27278166,599.55,597.9,3.261]
[1745505544727,0.29043444,599.63,597.9,3.261]
[1745505544926,0.27279705,599.62,597.9,3.261]
[1745505545126,0.27279705,599.61,597.9,3.261]
[1745505545323,0.27279705,599.6,597.9,3.261]
[1745505545519,0.27279705,599.62,597.9,3.261]
[1745505546021,0.27279705,599.68,597.9,3.261]
[1745505546226,0.29071953,599.61,597.9,3.261]
[1745505546523,0.27282456,599.6,597.9,3.261]
[1745505546827,0.27282456,599.59,597.9,3.261]
[1745505547021,0.27282456,599.68,597.9,3.261]
[1745505547221,2.16023464,600.02,597.9,3.261]
[1745505547222,0.29071953,599.59,597.9,3.261]
[1745505547423,0.27282456,599.58,597.9,3.261]
[1745505547721,0.29067825,599.58,597.9,3.261]
[1745505547925,0.27282456,599.57,597.9,3.261]
[1745505548126,0.27282456,599.56,597.9,3.261]
[1745505548331,0.27282456,599.55,597.9,3.261]
[1745505548520,0.27282456,599.54,597.9,3.261]
[1745505548725,0.27282456,599.53,597.9,3.261]
[1745505548921,0.27282456,599.52,597.9,3.261]
[1745505549132,0.27282456,599.51,597.9,3.261]
[1745505549322,0.27282456,599.5,597.9,3.261]
[1745505549527,1.26968893,599.47,597.9,3.261]
[1745505549723,0.27282456,599.46,597.9,3.261]
[1745505549927,0.27282456,599.45,597.9,3.261]
[1745505550124,0.27282456,599.44,597.9,3.261]
[1745505550326,0.27282456,599.43,597.9,3.261]
[1745505550528,0.27282456,599.42,597.9,3.261]
[1745505550824,0.27282456,599.41,597.9,3.261]
[1745505551029,0.27287878,599.4,597.9,3.261]
[1745505551329,0.27287878,599.39,597.9,3.261]
[1745505551529,0.27287878,599.38,597.9,3.261]
[1745505551829,0.27287878,599.37,597.9,3.261]
[1745505552029,0.27287878,599.36,597.9,3.261]
[1745505552325,0.27287878,599.35,597.9,3.261]
[1745505552526,0.27287546,599.34,597.9,3.261]
[1745505552828,0.27287546,599.33,597.9,3.261]
[1745505553028,0.27287546,599.51,597.9,3.261]
[1745505553229,0.27287546,599.5,597.9,3.261]
[1745505553427,0.27287546,599.49,597.9,3.261]
[1745505553629,0.27287546,599.48,597.9,3.261]
[1745505553930,0.27287546,599.47,597.9,3.261]
[1745505554130,0.27287546,599.46,597.9,3.261]
[1745505554322,0.27287546,599.45,597.9,3.261]
[1745505554527,0.27287546,599.44,597.9,3.261]
[1745505554826,0.27287546,599.43,597.9,3.261]
[1745505555028,0.27287546,599.42,597.9,3.261]
[1745505555228,0.27287546,599.5,597.9,3.261]
[1745505555428,0.27287546,599.49,597.9,3.261]
[1745505555629,0.27287546,599.48,597.9,3.261]
[1745505555928,0.27287546,599.47,597.9,3.261]
[1745505556129,0.27287546,599.46,597.9,3.261]
[1745505556329,0.27287546,599.45,597.9,3.261]
[1745505556528,0.27287546,599.44,597.9,3.261]
[1745505556827,0.27287546,599.43,597.9,3.261]
[1745505557029,0.27287546,599.42,597.9,3.261]
[1745505557230,0.27287546,599.41,597.9,3.261]
[1745505557430,0.27287546,599.42,597.9,3.261]
[1745505557630,0.27287546,599.41,597.9,3.261]
[1745505557830,0.27287546,599.4,597.9,3.261]
[1745505558026,0.27287546,599.68,597.9,3.261]
[1745505558233,0.27287546,599.67,597.9,3.261]
[1745505558434,0.27287546,599.66,597.9,3.261]
[1745505558632,0.27287546,599.65,597.9,3.261]
[1745505558826,0.27287546,599.64,597.9,3.261]
[1745505559029,0.27287546,599.63,597.9,3.261]
[1745505559231,0.27287546,599.62,597.9,3.261]
[1745505559435,0.27287546,599.61,597.9,3.261]
[1745505559632,0.27287546,599.6,597.9,3.261]
[1745505559830,0.27287546,599.59,597.9,3.261]
[1745505560030,0.27287546,599.58,597.9,3.261]
[1745505560242,0.27287546,599.57,597.9,3.261]
[1745505560535,0.27287546,599.56,597.9,3.261]
[1745505560730,0.27287546,599.55,597.9,3.261]
[1745505560933,0.27287546,599.54,597.9,3.261]
[1745505561129,0.27287546,599.53,597.9,3.261]
[1745505561331,0.27287546,599.52,597.9,3.261]
[1745505561534,0.27287546,599.51,597.9,3.261]
[1745505561735,0.27287546,599.5,597.9,3.261]
[1745505561936,0.27287546,599.49,597.9,3.261]
[1745505562138,0.27287546,599.48,597.9,3.261]
[1745505562436,0.27287546,599.47,597.9,3.261]
[1745505562633,0.27287546,599.46,597.9,3.261]
[1745505562837,0.27287546,599.45,597.9,3.261]
[1745505563038,0.27287546,599.44,597.9,3.261]
[1745505563339,0.27287926,599.43,597.9,3.261]
[1745505563539,0.27287926,599.42,597.9,3.261]
[1745505563739,0.27287926,599.41,597.9,3.261]
[1745505563940,0.27287926,599.4,597.9,3.261]
[1745505564134,0.27287926,599.39,597.9,3.261]
[1745505564334,0.27287926,599.38,597.9,3.261]
[1745505564541,0.27287926,599.37,597.9,3.261]
[1745505564741,0.27287926,599.54,597.9,3.261]
[1745505564939,0.27287926,599.53,597.9,3.261]
[1745505565144,1.26968893,599.27,597.9,3.261]
[1745505565347,0.27287926,599.26,597.9,3.261]
[1745505569243,0.27287926,599.59,597.9,3.261]
[1745505569442,0.27287926,599.58,597.9,3.261]
[1745505569642,0.27287926,599.57,597.9,3.261]
[1745505569844,0.27287926,599.56,597.9,3.261]
[1745505570143,0.27287926,599.55,597.9,3.261]
[1745505570338,0.27287926,599.54,597.9,3.261]
[1745505570538,0.27287926,599.53,597.9,3.261]
[1745505570738,0.27287926,599.52,597.9,3.261]
[1745505570937,0.29071589,599.56,597.9,3.261]
[1745505571138,0.27282929,599.55,597.9,3.261]
[1745505571338,0.27282929,599.54,597.9,3.261]
[1745505571642,0.29071589,599.56,597.9,3.261]
[1745505571643,0.27282929,599.53,597.9,3.261]
[1745505571942,0.27282929,599.52,597.9,3.261]
[1745505572243,0.27282929,599.51,597.9,3.261]
[1745505572441,0.29071589,599.56,597.9,3.261]
[1745505572641,0.27282202,599.55,597.9,3.261]
[1745505572947,0.27282202,599.54,597.9,3.261]
[1745505573141,0.27282202,599.53,597.9,3.261]
[1745505573342,0.27282202,599.52,597.9,3.261]
[1745505573538,0.27282202,599.51,597.9,3.261]
[1745505573742,0.27282202,599.5,597.9,3.261]
[1745505573938,0.27282202,599.49,597.9,3.261]
[1745505574144,1.26968893,599.41,597.9,3.261]
[1745505574343,0.27282166,599.4,597.9,3.261]
[1745505574542,0.27282166,599.39,597.9,3.261]
[1745505574742,0.27282166,599.38,597.9,3.261]
[1745505574941,0.27282166,599.37,597.9,3.261]
[1745505575144,0.27282166,599.36,597.9,3.261]
[1745505575341,0.27282166,599.35,597.9,3.261]
[1745505575538,0.27282166,599.34,597.9,3.261]
[1745505575743,0.27282166,599.33,597.9,3.261]
[1745505576045,0.27282166,599.32,597.9,3.261]
[1745505576345,0.27282166,599.31,597.9,3.261]
[1745505576639,0.27282166,599.3,597.9,3.261]
[1745505576842,0.27282166,599.35,597.9,3.261]
[1745505577141,0.27282166,599.34,597.9,3.261]
[1745505577338,0.27282166,599.35,597.9,3.261]
[1745505579737,0.27282166,599.55,597.9,3.261]
[1745505579940,0.27282166,599.54,597.9,3.261]
[1745505580137,0.27282166,599.53,597.9,3.261]
[1745505580441,0.27282166,599.52,597.9,3.261]
[1745505580636,0.27282166,599.55,597.9,3.261]
[1745505580938,0.27282166,599.54,597.9,3.261]
[1745505581138,0.27282166,599.53,597.9,3.261]
[1745505581338,0.27282166,599.52,597.9,3.261]
[1745505581538,0.27282166,599.51,597.9,3.261]
[1745505581742,0.27278841,599.5,597.9,3.261]
[1745505581942,0.27278841,599.49,597.9,3.261]
[1745505582243,0.27278841,599.48,597.9,3.261]
[1745505582446,0.27278841,599.55,597.9,3.261]
[1745505582744,0.27278841,599.54,597.9,3.261]
[1745505582946,0.27278841,599.53,597.9,3.261]
[1745505583139,0.27278841,599.52,597.9,3.261]
[1745505583342,0.27278841,599.51,597.9,3.261]
[1745505583642,0.27278841,599.5,597.9,3.261]
[1745505583843,0.27278841,599.49,597.9,3.261]
[1745505584046,0.27278841,599.65,597.9,3.261]
[1745505584246,0.27278841,599.64,597.9,3.261]
[1745505584441,0.27278841,599.63,597.9,3.261]
[1745505584647,0.27278841,599.62,597.9,3.261]
[1745505584847,0.27278841,599.61,597.9,3.261]
[1745505585046,0.27278841,599.6,597.9,3.261]
[1745505585247,0.27278841,599.59,597.9,3.261]
[1745505585444,0.27278841,599.58,597.9,3.261]
[1745505585642,0.27278841,599.57,597.9,3.261]
[1745505585945,0.27278841,599.56,597.9,3.261]
[1745505586147,0.27278841,599.55,597.9,3.261]
[1745505586342,0.27278841,599.54,597.9,3.261]
[1745505586546,0.27278841,599.53,597.9,3.261]
[1745505586748,0.27278841,599.52,597.9,3.261]
[1745505586949,0.27278841,599.51,597.9,3.261]
[1745505587249,0.27278841,599.5,597.9,3.261]
[1745505587445,0.27278841,599.49,597.9,3.261]
[1745505587649,0.29072075,599.61,597.9,3.261]
[1745505587850,0.27281741,599.6,597.9,3.261]
[1745505588049,0.27281741,599.59,597.9,3.261]
[1745505588246,0.27281741,599.58,597.9,3.261]
[1745505588443,0.27281741,599.57,597.9,3.261]
[1745505588749,0.27281741,599.56,597.9,3.261]
[1745505589050,0.27281741,599.55,597.9,3.261]
[1745505589250,1.26968893,599.46,597.9,3.261]
[1745505589446,0.27281903,599.45,597.9,3.261]
[1745505589647,0.27281903,599.44,597.9,3.261]
[1745505589848,0.27281903,599.43,597.9,3.261]
[1745505590050,0.27281903,599.42,597.9,3.261]
[1745505590248,0.27281903,599.41,597.9,3.261]
[1745505590446,0.27281903,599.4,597.9,3.261]
[1745505590746,1.26968893,599.46,597.9,3.261]
[1745505590950,1.26968893,599.46,597.79,0.29072439]
[1745505591252,0.27280293,599.45,597.8,0.6079922]
[1745505591448,0.27280293,599.44,597.81,0.6079922]
[1745505591753,0.27280293,599.43,597.82,0.6079922]
[1745505591952,0.27280293,599.45,597.83,0.6079922]
[1745505592253,0.27280293,599.52,597.84,0.6079922]
[1745505592452,0.27280354,599.51,597.85,0.6079922]
[1745505592652,0.27280354,599.51,597.79,0.29072439]
[1745505592951,0.27280354,599.5,597.8,0.6080369]
[1745505593247,0.27280354,599.49,597.81,0.6080369]
[1745505593451,0.27280354,599.48,597.82,0.6080369]
[1745505593645,0.27280354,599.47,597.83,0.6080369]
[1745505593848,1.26968893,599.53,597.84,0.6080369]
[1745505594047,0.27280762,599.52,597.85,0.6080369]
[1745505594248,0.27280762,599.51,597.85,1.4420369]
[1745505594454,0.27280762,599.5,597.85,1.603]
[1745505594655,0.27280762,599.49,597.85,1.603]
[1745505594856,0.27280762,599.48,597.85,1.603]
[1745505595154,0.27280762,599.47,597.86,0.60811946]
[1745505595354,0.27280762,599.46,597.85,1.603]
[1745505595551,0.27280762,599.54,597.86,0.6081208]
[1745505595755,0.27280762,599.53,597.85,1.603]
[1745505595955,0.27280762,599.52,597.86,0.60812719]
[1745505596155,0.27280762,599.51,597.85,1.603]
[1745505596355,0.27280762,599.5,597.86,0.60812763]
[1745505596655,0.27280762,599.49,597.87,0.60813482]
[1745505596855,0.27280762,599.48,597.88,0.60813482]
[1745505597054,0.27280762,599.47,597.89,0.60802614]
[1745505597255,0.27280762,599.46,597.85,1.603]
[1745505597456,0.27280762,599.45,597.86,0.60802679]
[1745505597657,0.2907171,599.48,597.87,0.60802679]
[1745505597955,0.2907171,599.48,597.88,0.60802679]
[1745505598155,0.2907171,599.48,597.89,0.60802679]
[1745505598352,0.27280121,599.47,597.85,1.603]
[1745505598557,0.27280121,599.47,597.86,0.60804232]
[1745505598757,0.27280121,599.47,597.87,0.60804232]
[1745505598954,0.27280121,599.47,597.85,1.603]
[1745505598955,0.27280121,599.47,597.88,0.60804232]
[1745505599159,0.27280121,599.47,597.89,0.60804232]
[1745505599357,0.27280121,599.47,597.9,0.60804232]
[1745505599554,0.27280121,599.47,597.91,0.60804232]
[1745505599757,0.27280121,599.47,597.92,0.60804232]
[1745505600056,0.27280121,599.47,597.93,0.60804232]
[1745505600252,0.27280121,599.5,597.94,0.60804232]
[1745505600457,0.27280121,599.5,597.95,0.60804232]
[1745505600655,0.27280121,599.5,597.96,0.60804232]
[1745505600857,0.27280121,599.5,597.86,0.29069525]
[1745505601055,0.27280121,599.5,597.87,0.60791426]
[1745505601257,0.27280121,599.5,597.88,0.60791426]
[1745505601462,0.27280121,599.5,597.85,1.603]
[1745505601762,0.27280121,599.49,597.85,1.603]
[1745505601961,0.27280121,599.48,597.85,1.603]
[1745505602161,0.27280121,599.47,597.85,1.603]
[1745505602354,0.27280121,599.74,597.85,1.603]
[1745505602559,0.27280121,599.73,597.85,1.603]
[1745505602860,0.27280121,599.72,597.85,1.603]
[1745505603063,0.27280121,599.71,597.85,1.603]
[1745505603365,0.27280121,599.7,597.85,1.603]
[1745505603663,0.27280121,599.69,597.85,1.603]
[1745505603961,0.27280121,599.68,597.85,1.603]
[1745505604165,1.26968893,599.64,597.85,1.603]
[1745505604463,0.27280121,599.63,597.85,1.603]
[1745505604665,0.27280121,599.62,597.85,1.603]
[1745505604863,0.27280121,599.61,597.85,1.603]
[1745505605063,0.27280121,599.6,597.85,1.603]
[1745505605364,0.27280121,599.59,597.85,1.603]
[1745505605565,0.27280121,599.58,597.85,1.603]
[1745505605759,0.27280121,599.57,597.85,1.603]
[1745505605960,0.2729536,599.56,597.85,1.603]
[1745505606160,0.2729536,599.55,597.85,1.603]
[1745505606463,0.2729536,599.54,597.85,1.603]
[1745505606760,0.2729536,599.53,597.85,1.603]
[1745505606966,0.2729536,599.52,597.85,1.603]
[1745505607166,0.2729536,599.51,597.85,1.603]
[1745505607361,0.29078998,599.57,597.85,1.603]
[1745505607563,0.27293047,599.56,597.85,1.603]
[1745505607765,0.27293047,599.55,597.85,1.603]
[1745505607965,0.27293047,599.54,597.85,1.603]
[1745505608166,0.29078998,599.57,597.85,1.603]
[1745505608167,1.5426194,599.53,597.85,1.603]
[1745505608360,0.27293047,599.52,597.85,1.603]
[1745505608564,0.27293047,599.51,597.85,1.603]
[1745505608760,0.27293047,599.5,597.85,1.603]
[1745505608960,0.27293047,599.49,597.85,1.603]
[1745505609169,0.27293047,599.48,597.85,1.603]
[1745505609368,0.27293047,599.47,597.85,1.603]
[1745505609571,0.27293047,599.46,597.85,1.603]
[1745505609766,0.27293047,599.45,597.85,1.603]
[1745505609971,0.27293047,599.44,597.85,1.603]
[1745505610168,0.27293047,599.43,597.85,1.603]
[1745505610468,1.26968893,599.45,597.85,1.603]
[1745505610672,0.27295049,599.44,597.85,1.603]
[1745505612068,0.2908082,599.43,597.85,1.603]
[1745505612270,0.27295049,599.42,597.85,1.603]
[1745505612466,0.27295049,599.41,597.85,1.603]
[1745505612672,0.27295049,599.4,597.85,1.603]
[1745505612973,0.27295049,599.39,597.85,1.603]
[1745505613168,0.27295049,599.38,597.85,1.603]
[1745505613367,0.27295049,599.37,597.85,1.603]
[1745505613577,0.27295049,599.36,597.56,0.2908082]
[1745505613873,0.27295049,599.35,597.56,0.2908082]
[1745505614068,0.27295049,599.34,597.56,0.2908082]
[1745505614268,0.27295049,599.33,597.56,0.2908082]
[1745505614475,0.27295049,599.32,597.56,0.2908082]
[1745505614674,0.27295049,599.42,597.0,0.881]
[1745505614870,0.27295049,599.41,597.36,0.29093949]
[1745505615071,0.27295049,599.42,597.36,0.29093949]
[1745505615272,0.27295049,599.41,597.0,0.881]
[1745505615474,0.27295049,599.41,597.36,0.29089328]
[1745505615672,0.27295049,599.4,597.36,0.29089328]
[1745505615973,0.27295049,599.39,597.0,0.881]
[1745505616172,0.27295049,599.38,597.36,0.29089328]
[1745505616377,0.27295049,599.37,597.0,0.881]
[1745505616578,1.26968893,599.42,597.01,0.60733885]
[1745505616772,0.27304947,599.41,597.36,0.2909626]
[1745505617078,0.27304947,599.4,597.02,1.099]
[1745505617278,0.27304947,599.39,597.36,0.29095165]
[1745505617479,0.27304947,599.38,597.37,0.30723354]
[1745505617780,0.27304947,599.37,597.38,0.30723354]
[1745505617976,0.27304947,599.36,597.37,0.30723354]
[1745505618178,0.27304947,599.36,597.36,0.29095044]
[1745505618179,0.27304947,599.35,597.39,0.30723354]
[1745505618377,0.27304947,599.34,597.4,0.30723354]
[1745505618576,0.27304947,599.33,597.41,0.30723354]
[1745505618774,0.27304947,599.32,597.37,0.30723354]
[1745505618980,0.27304947,599.31,597.38,0.30723354]
[1745505619181,1.26968893,599.1,597.37,0.30723354]
[1745505619377,0.27304947,599.09,597.37,0.30723354]
[1745505619779,0.27304947,599.08,597.38,0.6063333]
[1745505619983,0.27304947,599.07,597.39,0.91350118]
[1745505620184,0.27304947,599.06,597.4,0.91350118]
[1745505620382,0.27304947,599.05,597.41,0.30723354]
[1745505620581,0.27304947,599.04,597.37,0.30723354]
[1745505620777,0.27304947,599.03,597.38,0.60614719]